[Event "Late-Titled-Tuesday-Blitz-July-09-2024"]
[Site "Chess.com"]
[Date "2024.07.09"]
[Round "1"]
[White "ernestina08chess"]
[Black "only_strong_moves"]
[Result "0-1"]
[WhiteElo "2326"]
[BlackElo "2654"]
[TimeControl "180+1"]
[EndTime "14:06:33 PDT"]
[Termination "only_strong_moves won on time"]

1. e4 {[%clk 0:02:59.5]} 1... e5 {[%clk 0:02:59.6]} 2. Nf3 {[%clk 0:02:59.4]}
2... Nc6 {[%clk 0:03:00]} 3. Bc4 {[%clk 0:03:00.1]} 3... a6 {[%clk 0:03:00.5]}
4. c3 {[%clk 0:02:58.8]} 4... h6 {[%clk 0:02:58.1]} 5. d4 {[%clk 0:02:53]} 5...
Bd6 {[%clk 0:02:48.7]} 6. O-O {[%clk 0:02:39.4]} 6... Nge7 {[%clk 0:02:28.9]} 7.
dxe5 {[%clk 0:02:26.5]} 7... Bxe5 {[%clk 0:02:28.9]} 8. Nxe5 {[%clk 0:02:06]}
8... Nxe5 {[%clk 0:02:29.8]} 9. Bb3 {[%clk 0:02:06.6]} 9... d6 {[%clk 0:02:23]}
10. f4 {[%clk 0:02:01.8]} 10... N5g6 {[%clk 0:02:23]} 11. Be3 {[%clk 0:01:42.6]}
11... Be6 {[%clk 0:02:21.8]} 12. Bc2 {[%clk 0:01:38.3]} 12... f5 {[%clk
0:02:21.4]} 13. Bd4 {[%clk 0:01:29.3]} 13... O-O {[%clk 0:02:20.5]} 14. g3
{[%clk 0:01:05]} 14... Kh7 {[%clk 0:02:13]} 15. Nd2 {[%clk 0:01:05]} 15... Qd7
{[%clk 0:02:12.2]} 16. Qf3 {[%clk 0:01:04.3]} 16... fxe4 {[%clk 0:02:04.1]} 17.
Nxe4 {[%clk 0:01:03.9]} 17... c5 {[%clk 0:02:02.2]} 18. Be3 {[%clk 0:01:03.9]}
18... Nf5 {[%clk 0:02:01]} 19. Bf2 {[%clk 0:00:54.3]} 19... Kg8 {[%clk
0:01:53.1]} 20. Rfd1 {[%clk 0:00:50.6]} 20... Rad8 {[%clk 0:01:45.2]} 21. Qh5
{[%clk 0:00:39.1]} 21... Qf7 {[%clk 0:01:37]} 22. Nxd6 {[%clk 0:00:28.6]} 22...
Nxd6 {[%clk 0:01:29.2]} 23. Bxg6 {[%clk 0:00:27.6]} 23... Qf6 {[%clk 0:01:26.1]}
24. Bxc5 {[%clk 0:00:25.5]} 24... Bc8 {[%clk 0:01:17.2]} 25. Qd5+ {[%clk
0:00:17.1]} 25... Kh8 {[%clk 0:01:15]} 26. Bxd6 {[%clk 0:00:16.8]} 26... Qxg6
{[%clk 0:01:14.5]} 27. Qc5 {[%clk 0:00:08.5]} 27... Rfe8 {[%clk 0:01:13.3]} 28.
Be5 {[%clk 0:00:05.6]} 28... Bd7 {[%clk 0:01:13.9]} 29. Rd6 {[%clk 0:00:05]}
29... Qc2 {[%clk 0:01:13.3]} 30. Rxh6+ {[%clk 0:00:04.6]} 30... Kg8 {[%clk
0:01:12.9]} 31. Rg6 {[%clk 0:00:03.7]} 31... Qxg6 {[%clk 0:01:10.6]} 32. Rd1
{[%clk 0:00:03.1]} 32... Bc6 {[%clk 0:01:05.7]} 33. Qc4+ {[%clk 0:00:03.3]}
33... Kh7 {[%clk 0:01:04.7]} 34. Rxd8 {[%clk 0:00:03.3]} 34... Rxd8 {[%clk
0:01:05.6]} 35. Bd4 {[%clk 0:00:01.8]} 35... Qb1+ {[%clk 0:01:04.6]} 36. Kf2
{[%clk 0:00:01.8]} 36... Qe4 {[%clk 0:01:05.3]} 0-1

[Event "Late-Titled-Tuesday-Blitz-July-09-2024"]
[Site "Chess.com"]
[Date "2024.07.09"]
[Round "1"]
[White "Kowarenai"]
[Black "CapivaraBondoso"]
[Result "1-0"]
[WhiteElo "2548"]
[BlackElo "1997"]
[TimeControl "180+1"]
[EndTime "14:06:35 PDT"]
[Termination "Kowarenai won by resignation"]

1. Nf3 {[%clk 0:02:54.7]} 1... Nf6 {[%clk 0:02:59.2]} 2. b3 {[%clk 0:02:54.8]}
2... g6 {[%clk 0:02:59.2]} 3. Bb2 {[%clk 0:02:55.7]} 3... Bg7 {[%clk 0:03:00]}
4. e3 {[%clk 0:02:56.2]} 4... O-O {[%clk 0:03:00.4]} 5. d4 {[%clk 0:02:56.9]}
5... d6 {[%clk 0:02:58.6]} 6. Be2 {[%clk 0:02:56.9]} 6... c5 {[%clk 0:02:58.3]}
7. c4 {[%clk 0:02:55.4]} 7... Nc6 {[%clk 0:02:57.6]} 8. O-O {[%clk 0:02:55.1]}
8... cxd4 {[%clk 0:02:57.6]} 9. Nxd4 {[%clk 0:02:56]} 9... Bd7 {[%clk
0:02:57.8]} 10. Nc3 {[%clk 0:02:55.6]} 10... a6 {[%clk 0:02:56.9]} 11. Bf3
{[%clk 0:02:54.3]} 11... Qc8 {[%clk 0:02:56.4]} 12. Rc1 {[%clk 0:02:50.6]} 12...
Re8 {[%clk 0:02:55.5]} 13. Nd5 {[%clk 0:02:43.1]} 13... Ne5 {[%clk 0:02:44.1]}
14. Nb6 {[%clk 0:02:35.9]} 14... Qd8 {[%clk 0:02:41.9]} 15. Nxd7 {[%clk
0:02:34.7]} 15... Qxd7 {[%clk 0:02:42.8]} 16. h3 {[%clk 0:02:32.4]} 16... Nxf3+
{[%clk 0:02:41]} 17. Qxf3 {[%clk 0:02:33.3]} 17... Rac8 {[%clk 0:02:30.5]} 18.
Rfd1 {[%clk 0:02:31.4]} 18... b5 {[%clk 0:02:29.6]} 19. cxb5 {[%clk 0:02:27.5]}
19... axb5 {[%clk 0:02:30.5]} 20. Qe2 {[%clk 0:02:27.8]} 20... b4 {[%clk
0:02:19.2]} 21. Qb5 {[%clk 0:01:59.6]} 21... Qxb5 {[%clk 0:02:09]} 22. Nxb5
{[%clk 0:02:00.5]} 22... Ne4 {[%clk 0:02:02.6]} 23. Bxg7 {[%clk 0:01:46.9]}
23... Kxg7 {[%clk 0:02:03.5]} 24. f3 {[%clk 0:01:47.3]} 24... Nc3 {[%clk
0:01:55.1]} 25. Nxc3 {[%clk 0:01:46.7]} 25... bxc3 {[%clk 0:01:56]} 26. Rd3
{[%clk 0:01:46.4]} 26... Ra8 {[%clk 0:01:55.1]} 27. a4 {[%clk 0:01:43.3]} 27...
Reb8 {[%clk 0:01:52.1]} 28. Rcxc3 {[%clk 0:01:43.3]} 28... Rb4 {[%clk
0:01:52.2]} 29. Rd4 {[%clk 0:01:42.6]} 29... Rb7 {[%clk 0:01:51.8]} 30. Kf2
{[%clk 0:01:36.7]} 30... Rab8 {[%clk 0:01:51.5]} 31. Rdd3 {[%clk 0:01:36.5]}
31... Kf8 {[%clk 0:01:48.4]} 32. Ke2 {[%clk 0:01:35.9]} 32... Ke8 {[%clk
0:01:48.9]} 33. Kd2 {[%clk 0:01:36.5]} 33... Kd7 {[%clk 0:01:49.3]} 34. Kc2
{[%clk 0:01:37.2]} 34... e6 {[%clk 0:01:49.6]} 35. Kb2 {[%clk 0:01:37.7]} 35...
d5 {[%clk 0:01:50]} 36. Ka3 {[%clk 0:01:38.2]} 36... Kd6 {[%clk 0:01:47.9]} 37.
e4 {[%clk 0:01:38.5]} 37... f6 {[%clk 0:01:44.5]} 38. exd5 {[%clk 0:01:38.5]}
38... exd5 {[%clk 0:01:45.4]} 39. Rd4 {[%clk 0:01:38.9]} 39... Ke5 {[%clk
0:01:34.8]} 40. Rdd3 {[%clk 0:01:06.9]} 40... f5 {[%clk 0:01:25.7]} 41. Rc5
{[%clk 0:01:05.1]} 41... Rd8 {[%clk 0:01:22.1]} 42. g3 {[%clk 0:01:03.7]} 42...
h5 {[%clk 0:01:20.5]} 43. h4 {[%clk 0:01:01.1]} 43... f4 {[%clk 0:01:17.6]} 44.
gxf4+ {[%clk 0:00:47.4]} 44... Kxf4 {[%clk 0:01:18.5]} 45. Rcxd5 {[%clk
0:00:48]} 45... Rxd5 {[%clk 0:01:12.9]} 46. Rxd5 {[%clk 0:00:48.9]} 46... Kxf3
{[%clk 0:01:13.6]} 47. Rg5 {[%clk 0:00:49.5]} 47... Rb6 {[%clk 0:01:08.5]} 48.
b4 {[%clk 0:00:49.6]} 48... Kf4 {[%clk 0:01:02.4]} 49. b5 {[%clk 0:00:49.4]}
49... Rf6 {[%clk 0:00:59.8]} 50. a5 {[%clk 0:00:49.3]} 50... Rf5 {[%clk
0:00:56.2]} 51. b6 {[%clk 0:00:40.8]} 51... Rxg5 {[%clk 0:00:54.4]} 52. hxg5
{[%clk 0:00:41.7]} 1-0

[Event "Late-Titled-Tuesday-Blitz-July-09-2024"]
[Site "Chess.com"]
[Date "2024.07.09"]
[Round "1"]
[White "Itay121"]
[Black "champ2005"]
[Result "1/2-1/2"]
[WhiteElo "2518"]
[BlackElo "3036"]
[TimeControl "180+1"]
[EndTime "14:06:37 PDT"]
[Termination "Game drawn by agreement"]

1. d4 {[%clk 0:03:00.9]} 1... Nf6 {[%clk 0:02:59.9]} 2. Nc3 {[%clk 0:03:00.6]}
2... d5 {[%clk 0:02:59.4]} 3. Bf4 {[%clk 0:03:01]} 3... a6 {[%clk 0:02:58.7]} 4.
e3 {[%clk 0:03:00.4]} 4... b5 {[%clk 0:02:59]} 5. a3 {[%clk 0:02:59.4]} 5... e6
{[%clk 0:02:58.2]} 6. b4 {[%clk 0:02:59.3]} 6... c6 {[%clk 0:02:54.1]} 7. Bd3
{[%clk 0:02:57.6]} 7... a5 {[%clk 0:02:54.6]} 8. bxa5 {[%clk 0:02:14.2]} 8...
Qxa5 {[%clk 0:02:55.5]} 9. Qd2 {[%clk 0:02:07.6]} 9... Nbd7 {[%clk 0:02:41.5]}
10. Nge2 {[%clk 0:02:05.8]} 10... b4 {[%clk 0:02:38.6]} 11. Nb1 {[%clk
0:02:01.2]} 11... bxa3 {[%clk 0:02:39]} 12. Qxa5 {[%clk 0:01:52]} 12... Rxa5
{[%clk 0:02:39.9]} 13. O-O {[%clk 0:01:47.9]} 13... c5 {[%clk 0:02:38.8]} 14. c3
{[%clk 0:01:35.8]} 14... c4 {[%clk 0:02:37]} 15. Bc2 {[%clk 0:01:34.7]} 15...
Be7 {[%clk 0:02:34]} 16. f3 {[%clk 0:01:28.5]} 16... Bb7 {[%clk 0:02:25.9]} 17.
Ra2 {[%clk 0:01:28.5]} 17... O-O {[%clk 0:02:25.6]} 18. Nd2 {[%clk 0:01:26.8]}
18... Rfa8 {[%clk 0:02:25.5]} 19. Rb1 {[%clk 0:01:26.4]} 19... Bc6 {[%clk
0:02:26]} 20. e4 {[%clk 0:01:23.6]} 20... h6 {[%clk 0:02:25.1]} 21. e5 {[%clk
0:01:22.1]} 21... Ne8 {[%clk 0:02:25.2]} 22. Rba1 {[%clk 0:01:16.1]} 22... Nc7
{[%clk 0:02:25.2]} 23. g4 {[%clk 0:01:13.9]} 23... Nb6 {[%clk 0:02:24.4]} 24.
Kg2 {[%clk 0:01:11.9]} 24... Na4 {[%clk 0:02:24.6]} 25. Nb1 {[%clk 0:01:00.8]}
25... Nb5 {[%clk 0:02:24.4]} 26. Bc1 {[%clk 0:00:56]} 26... Nb6 {[%clk
0:02:12.4]} 27. Kg3 {[%clk 0:00:54.9]} 27... Kf8 {[%clk 0:02:02.6]} 28. f4
{[%clk 0:00:54.2]} 28... Ke8 {[%clk 0:01:58]} 29. h4 {[%clk 0:00:53.9]} 29...
Kd7 {[%clk 0:01:58.2]} 30. f5 {[%clk 0:00:53.7]} 30... Bf8 {[%clk 0:01:49.1]}
31. Nf4 {[%clk 0:00:49.1]} 31... Na4 {[%clk 0:01:44.5]} 32. Ne2 {[%clk
0:00:40.8]} 32... Naxc3 {[%clk 0:01:42.4]} 33. Nbxc3 {[%clk 0:00:39.7]} 33...
Nxc3 {[%clk 0:01:42.2]} 34. Nxc3 {[%clk 0:00:40]} 34... Bb4 {[%clk 0:01:42.2]}
35. Nb1 {[%clk 0:00:39.2]} 35... c3 {[%clk 0:01:36.8]} 36. Bxa3 {[%clk
0:00:30.5]} 36... Bb5 {[%clk 0:01:35.1]} 37. Bb3 {[%clk 0:00:28.6]} 37... Bd3
{[%clk 0:01:02]} 38. Bxb4 {[%clk 0:00:26.8]} 38... Rxa2 {[%clk 0:01:01.5]} 39.
Rxa2 {[%clk 0:00:27.3]} 39... Rxa2 {[%clk 0:01:01.3]} 40. Bxa2 {[%clk
0:00:27.4]} 40... c2 {[%clk 0:01:02.2]} 41. Bd2 {[%clk 0:00:23.8]} 41... cxb1=Q
{[%clk 0:01:01.6]} 42. Bxb1 {[%clk 0:00:24.7]} 42... Bxb1 {[%clk 0:01:01.4]} 43.
Kf4 {[%clk 0:00:25.2]} 43... Bc2 {[%clk 0:00:56.8]} 44. Bb4 {[%clk 0:00:24.8]}
1/2-1/2

[Event "Late-Titled-Tuesday-Blitz-July-09-2024"]
[Site "Chess.com"]
[Date "2024.07.09"]
[Round "1"]
[White "NowInChess"]
[Black "GlavkonVVS"]
[Result "0-1"]
[WhiteElo "2204"]
[BlackElo "2583"]
[TimeControl "180+1"]
[EndTime "14:06:37 PDT"]
[Termination "GlavkonVVS won on time"]

1. e4 {[%clk 0:03:00.9]} 1... Nf6 {[%clk 0:02:59.1]} 2. e5 {[%clk 0:03:00.5]}
2... Nd5 {[%clk 0:02:58.6]} 3. c4 {[%clk 0:03:00.7]} 3... Nb6 {[%clk 0:02:57.4]}
4. d4 {[%clk 0:03:01.2]} 4... d6 {[%clk 0:02:55.3]} 5. exd6 {[%clk 0:03:02.1]}
5... cxd6 {[%clk 0:02:54.9]} 6. Nc3 {[%clk 0:03:02.4]} 6... g6 {[%clk 0:02:50]}
7. Be3 {[%clk 0:03:02.1]} 7... Bg7 {[%clk 0:02:49]} 8. Rc1 {[%clk 0:03:02.1]}
8... O-O {[%clk 0:02:48.4]} 9. b3 {[%clk 0:03:00.2]} 9... f5 {[%clk 0:02:48.3]}
10. Qd2 {[%clk 0:02:34.7]} 10... e5 {[%clk 0:02:43.7]} 11. dxe5 {[%clk
0:02:33.7]} 11... dxe5 {[%clk 0:02:43.5]} 12. Nf3 {[%clk 0:02:21.5]} 12... f4
{[%clk 0:02:40.6]} 13. Bc5 {[%clk 0:02:07.3]} 13... Qxd2+ {[%clk 0:02:38]} 14.
Nxd2 {[%clk 0:02:06.7]} 14... Re8 {[%clk 0:02:36.7]} 15. Nde4 {[%clk 0:01:55.5]}
15... Na6 {[%clk 0:02:31.3]} 16. Bxb6 {[%clk 0:01:51.6]} 16... axb6 {[%clk
0:02:31.2]} 17. Nd5 {[%clk 0:01:49.9]} 17... Bf5 {[%clk 0:02:22.8]} 18. Nef6+
{[%clk 0:01:45]} 18... Kf7 {[%clk 0:02:11.9]} 19. Nxe8 {[%clk 0:01:43.2]} 19...
Rxe8 {[%clk 0:02:11.6]} 20. Be2 {[%clk 0:01:34.9]} 20... Nc5 {[%clk 0:01:57]}
21. O-O {[%clk 0:01:31.1]} 21... Re6 {[%clk 0:01:38.9]} 22. Rcd1 {[%clk
0:01:29.4]} 22... g5 {[%clk 0:01:33.6]} 23. h3 {[%clk 0:01:20.7]} 23... e4
{[%clk 0:01:31.4]} 24. Rfe1 {[%clk 0:01:07.1]} 24... Rd6 {[%clk 0:01:08.8]} 25.
Bh5+ {[%clk 0:00:58.6]} 25... Kf8 {[%clk 0:01:07.2]} 26. Bg4 {[%clk 0:00:31.3]}
26... Bg6 {[%clk 0:01:02.2]} 27. h4 {[%clk 0:00:22]} 27... h6 {[%clk 0:00:51.6]}
28. hxg5 {[%clk 0:00:20.5]} 28... hxg5 {[%clk 0:00:51.3]} 29. b4 {[%clk
0:00:12.9]} 29... Nd3 {[%clk 0:00:48.8]} 30. Rf1 {[%clk 0:00:09.5]} 30... b5
{[%clk 0:00:46.8]} 31. Nc7 {[%clk 0:00:01.9]} 31... bxc4 {[%clk 0:00:44.5]} 32.
Ne6+ {[%clk 0:00:02]} 32... Kf7 {[%clk 0:00:44.4]} 0-1

[Event "Late-Titled-Tuesday-Blitz-July-09-2024"]
[Site "Chess.com"]
[Date "2024.07.09"]
[Round "1"]
[White "LoonsDeKoeben"]
[Black "oskariot"]
[Result "0-1"]
[WhiteElo "2435"]
[BlackElo "2802"]
[TimeControl "180+1"]
[EndTime "14:06:39 PDT"]
[Termination "oskariot won by resignation"]

1. e4 {[%clk 0:02:58.5]} 1... c5 {[%clk 0:03:00.4]} 2. Nf3 {[%clk 0:02:58]} 2...
e6 {[%clk 0:03:01]} 3. b3 {[%clk 0:02:56]} 3... a6 {[%clk 0:03:00.6]} 4. Bb2
{[%clk 0:02:54.2]} 4... d5 {[%clk 0:03:01.2]} 5. exd5 {[%clk 0:02:53]} 5... exd5
{[%clk 0:03:02.1]} 6. Qe2+ {[%clk 0:02:46.5]} 6... Be6 {[%clk 0:03:00.1]} 7. d3
{[%clk 0:02:40.8]} 7... Nc6 {[%clk 0:02:58.3]} 8. Nbd2 {[%clk 0:02:40.6]} 8...
Nf6 {[%clk 0:02:54.1]} 9. O-O-O {[%clk 0:02:29.6]} 9... Be7 {[%clk 0:02:44.8]}
10. g4 {[%clk 0:02:26.7]} 10... d4 {[%clk 0:02:42]} 11. g5 {[%clk 0:02:22.4]}
11... Nd5 {[%clk 0:02:42.2]} 12. Ne4 {[%clk 0:02:19.5]} 12... Qa5 {[%clk
0:02:32.6]} 13. Kb1 {[%clk 0:02:04.6]} 13... O-O-O {[%clk 0:02:12.8]} 14. Qd2
{[%clk 0:01:54.2]} 14... Qxd2 {[%clk 0:02:08]} 15. Nfxd2 {[%clk 0:01:53]} 15...
h6 {[%clk 0:02:00.7]} 16. gxh6 {[%clk 0:01:17.8]} 16... Rxh6 {[%clk 0:02:00]}
17. Nf3 {[%clk 0:01:14.1]} 17... Bg4 {[%clk 0:01:52]} 18. Ned2 {[%clk
0:01:11.7]} 18... Nc3+ {[%clk 0:01:50.4]} 19. Bxc3 {[%clk 0:01:05.4]} 19... dxc3
{[%clk 0:01:50.4]} 20. Rg1 {[%clk 0:00:57.7]} 20... Bh5 {[%clk 0:01:46.8]} 21.
Bh3+ {[%clk 0:00:57.1]} 21... Kb8 {[%clk 0:01:47.4]} 22. Rde1 {[%clk 0:00:32.2]}
22... cxd2 {[%clk 0:01:44.6]} 23. Nxd2 {[%clk 0:00:33.1]} 23... Bg6 {[%clk
0:01:41.9]} 24. Rg3 {[%clk 0:00:29.3]} 24... Bd6 {[%clk 0:01:40.9]} 25. Rf3
{[%clk 0:00:28.8]} 25... Nd4 {[%clk 0:01:40.1]} 26. Rfe3 {[%clk 0:00:22.4]}
26... Bf4 {[%clk 0:01:33]} 27. Re8 {[%clk 0:00:22.1]} 27... Rxe8 {[%clk
0:01:28.6]} 28. Rxe8+ {[%clk 0:00:23]} 28... Ka7 {[%clk 0:01:29.5]} 29. Nc4
{[%clk 0:00:12.6]} 29... Rxh3 {[%clk 0:01:28.9]} 30. a4 {[%clk 0:00:13]} 30...
Nc6 {[%clk 0:01:14.8]} 31. a5 {[%clk 0:00:12.3]} 31... Bc7 {[%clk 0:01:15.4]}
32. Rc8 {[%clk 0:00:09.2]} 32... Bxa5 {[%clk 0:01:13.6]} 33. Re8 {[%clk
0:00:07]} 33... Bc7 {[%clk 0:01:06.1]} 34. Rc8 {[%clk 0:00:05.9]} 34... Bxh2
{[%clk 0:01:06.3]} 35. b4 {[%clk 0:00:03.9]} 35... cxb4 {[%clk 0:01:02]} 36. Kb2
{[%clk 0:00:04.2]} 36... Bf5 {[%clk 0:00:58]} 37. Rc7 {[%clk 0:00:03.2]} 37...
Be6 {[%clk 0:00:58]} 38. Rxf7 {[%clk 0:00:02]} 38... Bxf7 {[%clk 0:00:58.2]} 0-1

[Event "Late-Titled-Tuesday-Blitz-July-09-2024"]
[Site "Chess.com"]
[Date "2024.07.09"]
[Round "1"]
[White "carloseduar100"]
[Black "mamey78"]
[Result "0-1"]
[WhiteElo "2272"]
[BlackElo "2610"]
[TimeControl "180+1"]
[EndTime "14:06:41 PDT"]
[Termination "mamey78 won by resignation"]

1. e4 {[%clk 0:02:58.3]} 1... e5 {[%clk 0:02:58.3]} 2. Nf3 {[%clk 0:02:58.8]}
2... Nc6 {[%clk 0:02:58.3]} 3. Nc3 {[%clk 0:02:59.6]} 3... Nf6 {[%clk
0:02:58.2]} 4. Nxe5 {[%clk 0:03:00.2]} 4... Nxe5 {[%clk 0:02:57.7]} 5. d4 {[%clk
0:03:01]} 5... Nc6 {[%clk 0:02:57.3]} 6. d5 {[%clk 0:03:01]} 6... Bb4 {[%clk
0:02:57.9]} 7. dxc6 {[%clk 0:03:00.5]} 7... bxc6 {[%clk 0:02:58.6]} 8. Bd2
{[%clk 0:02:59.6]} 8... d5 {[%clk 0:02:56.5]} 9. e5 {[%clk 0:02:58.7]} 9... Ng4
{[%clk 0:02:49.3]} 10. Qe2 {[%clk 0:02:55.2]} 10... O-O {[%clk 0:02:47.7]} 11.
h3 {[%clk 0:02:54.6]} 11... Nxe5 {[%clk 0:02:46.9]} 12. O-O-O {[%clk 0:02:47.2]}
12... Nc4 {[%clk 0:02:44.9]} 13. Qf3 {[%clk 0:02:37.1]} 13... Nxd2 {[%clk
0:02:41.7]} 14. Rxd2 {[%clk 0:02:37.2]} 14... Rb8 {[%clk 0:02:33.9]} 15. g4
{[%clk 0:02:35.2]} 15... Qg5 {[%clk 0:02:23]} 16. Be2 {[%clk 0:02:27.5]} 16...
d4 {[%clk 0:02:10.8]} 17. h4 {[%clk 0:02:19.7]} 17... Qc5 {[%clk 0:02:11.4]} 18.
Ne4 {[%clk 0:02:10.3]} 18... Bxd2+ {[%clk 0:02:10.2]} 19. Nxd2 {[%clk
0:02:11.2]} 19... Be6 {[%clk 0:02:08.5]} 20. Nb3 {[%clk 0:01:51.5]} 20... Qd6
{[%clk 0:01:34.5]} 21. h5 {[%clk 0:01:46.4]} 21... Bd5 {[%clk 0:01:33]} 22. Qh3
{[%clk 0:01:43.7]} 22... Bxh1 {[%clk 0:01:32.5]} 23. Qxh1 {[%clk 0:01:44.6]}
23... c5 {[%clk 0:01:32]} 24. g5 {[%clk 0:01:42.4]} 24... Qf4+ {[%clk
0:01:32.2]} 25. Kb1 {[%clk 0:01:40.8]} 25... Qxg5 {[%clk 0:01:32.2]} 26. Bc4
{[%clk 0:01:37.7]} 26... Rfe8 {[%clk 0:01:31.8]} 27. a3 {[%clk 0:01:37.1]} 27...
h6 {[%clk 0:01:29.2]} 28. Qc6 {[%clk 0:01:31.8]} 28... Re7 {[%clk 0:01:26.9]}
29. Nxc5 {[%clk 0:01:30.1]} 29... Qf6 {[%clk 0:01:14.5]} 30. Qxf6 {[%clk
0:01:10.9]} 30... gxf6 {[%clk 0:01:15.4]} 31. Bd3 {[%clk 0:01:04.5]} 31... Kg7
{[%clk 0:01:09.1]} 32. Nb3 {[%clk 0:01:02]} 32... Rd8 {[%clk 0:01:07.6]} 33. Na5
{[%clk 0:01:00.3]} 33... Rd6 {[%clk 0:01:01.1]} 34. f4 {[%clk 0:01:00.1]} 34...
Re3 {[%clk 0:00:56.2]} 35. b4 {[%clk 0:00:51.4]} 35... Rh3 {[%clk 0:00:52.9]}
36. Nc4 {[%clk 0:00:47]} 36... Rxh5 {[%clk 0:00:50.1]} 37. Nxd6 {[%clk
0:00:46.7]} 37... cxd6 {[%clk 0:00:51]} 38. Kb2 {[%clk 0:00:46.5]} 38... Rh4
{[%clk 0:00:51]} 39. f5 {[%clk 0:00:45.8]} 39... Kf8 {[%clk 0:00:47.1]} 40. a4
{[%clk 0:00:45.9]} 40... Ke7 {[%clk 0:00:47.7]} 41. b5 {[%clk 0:00:46.3]} 41...
Kd8 {[%clk 0:00:48.3]} 42. a5 {[%clk 0:00:46.8]} 42... Kc7 {[%clk 0:00:49]} 43.
Kb3 {[%clk 0:00:47.4]} 43... Rh1 {[%clk 0:00:47.9]} 44. Kc4 {[%clk 0:00:47.7]}
44... h5 {[%clk 0:00:47.7]} 45. Kxd4 {[%clk 0:00:47.9]} 45... h4 {[%clk
0:00:48.3]} 46. Be4 {[%clk 0:00:47.3]} 46... Rd1+ {[%clk 0:00:48]} 47. Ke3
{[%clk 0:00:43.5]} 47... h3 {[%clk 0:00:48.9]} 48. Ke2 {[%clk 0:00:37]} 48...
Ra1 {[%clk 0:00:48.8]} 49. b6+ {[%clk 0:00:36.1]} 49... axb6 {[%clk 0:00:49.7]}
50. axb6+ {[%clk 0:00:36.4]} 50... Kxb6 {[%clk 0:00:50.3]} 0-1

[Event "Late-Titled-Tuesday-Blitz-July-09-2024"]
[Site "Chess.com"]
[Date "2024.07.09"]
[Round "1"]
[White "Martins-BR"]
[Black "Sek_Konstantin"]
[Result "0-1"]
[WhiteElo "2380"]
[BlackElo "2718"]
[TimeControl "180+1"]
[EndTime "14:06:45 PDT"]
[Termination "Sek_Konstantin won on time"]

1. e4 {[%clk 0:02:57.5]} 1... e5 {[%clk 0:02:59.5]} 2. Nf3 {[%clk 0:02:56.9]}
2... Nc6 {[%clk 0:03:00]} 3. d4 {[%clk 0:02:56.6]} 3... exd4 {[%clk 0:02:59.5]}
4. Nxd4 {[%clk 0:02:57.5]} 4... Nf6 {[%clk 0:02:59.4]} 5. Nc3 {[%clk 0:02:56.3]}
5... Bc5 {[%clk 0:02:58.2]} 6. Be3 {[%clk 0:02:51.5]} 6... Bb6 {[%clk
0:02:55.9]} 7. Nf5 {[%clk 0:02:46.9]} 7... O-O {[%clk 0:02:53.4]} 8. Bxb6 {[%clk
0:02:40.8]} 8... axb6 {[%clk 0:02:52.6]} 9. Bd3 {[%clk 0:02:39.7]} 9... d5
{[%clk 0:02:49.3]} 10. exd5 {[%clk 0:02:34]} 10... Bxf5 {[%clk 0:02:37.2]} 11.
Bxf5 {[%clk 0:02:30.3]} 11... Re8+ {[%clk 0:02:35.9]} 12. Kf1 {[%clk 0:02:26.7]}
12... Nb4 {[%clk 0:02:35.1]} 13. d6 {[%clk 0:02:25.3]} 13... cxd6 {[%clk
0:02:30.3]} 14. a3 {[%clk 0:02:23.9]} 14... Nc6 {[%clk 0:02:29.5]} 15. Qd2
{[%clk 0:02:15.5]} 15... Ra5 {[%clk 0:02:26.8]} 16. Bd3 {[%clk 0:02:08.6]} 16...
Rae5 {[%clk 0:02:26.2]} 17. h3 {[%clk 0:01:50.8]} 17... d5 {[%clk 0:02:24.1]}
18. Kg1 {[%clk 0:01:40.5]} 18... Qd6 {[%clk 0:02:17.9]} 19. Rd1 {[%clk
0:01:27.3]} 19... g6 {[%clk 0:02:06.6]} 20. Ne2 {[%clk 0:01:20.7]} 20... d4
{[%clk 0:01:56.9]} 21. Ng3 {[%clk 0:01:17.4]} 21... h5 {[%clk 0:01:55.3]} 22. b4
{[%clk 0:00:59.4]} 22... h4 {[%clk 0:01:53.1]} 23. Ne2 {[%clk 0:00:58.6]} 23...
Ne4 {[%clk 0:01:50.9]} 24. Bxe4 {[%clk 0:00:27.8]} 24... Rxe4 {[%clk 0:01:49.9]}
25. Nc1 {[%clk 0:00:27.7]} 25... Ne5 {[%clk 0:01:40]} 26. Nb3 {[%clk 0:00:21.2]}
26... Nc4 {[%clk 0:01:38.6]} 27. Qc1 {[%clk 0:00:18.3]} 27... Qf6 {[%clk
0:01:24.3]} 28. Rf1 {[%clk 0:00:14.8]} 28... Qe5 {[%clk 0:00:57.9]} 29. Nd2
{[%clk 0:00:11.3]} 29... Nxd2 {[%clk 0:00:56.3]} 30. Qxd2 {[%clk 0:00:11.5]}
30... Re2 {[%clk 0:00:53.3]} 31. Qd3 {[%clk 0:00:10]} 31... Rc8 {[%clk
0:00:52.8]} 32. f4 {[%clk 0:00:08.4]} 32... Qe7 {[%clk 0:00:51.4]} 33. Rc1
{[%clk 0:00:01]} 33... Rc3 {[%clk 0:00:42.6]} 0-1